Cogmind - Beta 9.1 @@@ ROGUE MODE // 2019.10.31 @ 21:30:56 // Halloween2019/Abominations Player: Gitida Result: Destroyed by Lesser Abomination with Small Laser Performance ------------- Evolutions (0) 0 Regions Visited (1) 200 Robots Destroyed (5) 25 Value Destroyed (320) 320 Prototype IDs (2) 40 Alien Tech Used (0) 0 Bonus (0) 0 TOTAL SCORE: 585 Bonus ------- None Cogmind --------- Core Integrity 0/250 Matter 289/300 Energy 100/100 System Corruption 5% Temperature Cool (6) Location -10/Materials Parts ------- Power (1) Propulsion (2) Utility (2) Heat Sink Small Storage Unit Weapon (2) Inventory (6) Light Treads Light Treads Sensor Array Signal Interpreter Peak State ------------ Power Ion Engine Propulsion Light Treads Light Treads Utility Heat Sink Small Storage Unit Weapon Assault Rifle Light Assault Rifle Inventory Ion Engine Light Treads Sensor Array Signal Interpreter Light Assault Rifle [Rating: 7] Favorites ----------- Power Ion Engine Engine Ion Engine Propulsion Light Treads Treads Light Treads Utility Small Storage Unit Device Heat Sink Storage Small Storage Unit Weapon Light Assault Rifle Ballistic Gun Light Assault Rifle Build | -11 -10 ------- Run | Scr Mat Slots Evolved . | . . Power . | . . Propulsion . | . . Utility . | . . Weapon . | . . Parts Attached 9 | 5 4 Power 2 | 1 1 Engine 2 | 1 1 Core . | . . Reactor . | . . Propulsion 2 | 2 . Treads 2 | 2 . Leg . | . . Wheel . | . . Hover . | . . Flight . | . . Utility 2 | 1 1 Device 1 | . 1 Storage 1 | 1 . Processor . | . . Hackware . | . . Protection . | . . Artifact . | . . Weapon 3 | 1 2 Energy Gun . | . . Energy Cannon . | . . Ballistic Gun 3 | 1 2 Ballistic Cannon . | . . Launcher . | . . Special Weapon . | . . Impact Weapon . | . . Slashing Weapon . | . . Piercing Weapon . | . . Special Melee Weapon . | . . Unidentified Prototypes . | . . Parts Lost 6 | . 6 Power 1 | . 1 Propulsion 2 | . 2 Utility . | . . Weapon 3 | . 3 Highest Loss Streak 6 | . 6 Average Slot Usage (%) 83 | . 83 Engine 12 | . 12 Treads 27 | . 27 Device 6 | . 6 Storage 14 | . 14 Ballistic Gun 21 | . 21 Naked Turns . | . . Heaviest Build 13 | 10 13 Greatest Support 40 | 40 40 Greatest Overweight (x) 1 | . 1 Average Overweight (x) . | . . Largest Inventory Capacity 6 | 6 6 Average Capacity 5 | 5 6 Most Carried 6 | 4 6 Average Carried 4 | 2 4 Final Capacity 6 | 6 6 Final Carried 4 | 3 4 Class Distribution -------------------- 100% | Mutant Dominant Class ---------------- Mutant | -10/Materials Resources | -11 -10 ----------- Run | Scr Mat Matter Collected 370 | 246 124 Remotely . | . . Salvage Created 247 | . 247 Parts 10 | . 10 Haulers Intercepted . | . . Recyclers Shooed . | . . Parts Field Recycled . | . . Retrieved Matter . | . . Parts Self-Destructed . | . . Prevented . | . . Kills | -11 -10 ------- Run | Scr Mat Combat Hostiles Destroyed 5 | . 5 Guns 5 | . 5 Classes Destroyed 1 | . 1 Abomination 5 | . 5 Best Kill Streak 2 | . 2 Combat Bots Only 2 | . 2 Max Kills in Single Turn 1 | . 1 Gunslinging . | . . Exploded . | . . Melee . | . . Uniques/NPCs Destroyed . | . . Combat | -11 -10 -------- Run | Scr Mat Damage Taken 968 | . 968 Core 257 | . 257 Absorbed by Shields . | . . Core Remaining (%) 100 | 100 . Volleys Fired 33 | . 33 Largest 2 | . 2 Hottest 40 | . 40 Shots Fired 65 | . 65 Gun 65 | . 65 Cannon . | . . Launcher . | . . Special . | . . Kinetic 65 | . 65 Thermal . | . . Explosive . | . . Electromagnetic . | . . Robot Hit Streak 16 | . 16 Robot Miss Streak 2 | . 2 Penetration Max . | . . Secondary Targets . | . . Shots Hit Robots 49 | . 49 Core Hits 14 | . 14 Critical Hits . | . . Critical Kills . | . . Critical Parts Destroyed . | . . Melee Attacks . | . . Impact . | . . Slashing . | . . Piercing . | . . Sneak Attacks . | . . Combat Hostiles . | . . Follow-up Attacks . | . . Damage Inflicted 528 | 3 525 Guns 525 | . 525 Cannons . | . . Explosions . | . . Melee . | . . Ramming 3 | 3 . Kinetic 525 | . 525 Thermal . | . . Explosive . | . . Electromagnetic . | . . Impact . | . . Slashing . | . . Piercing . | . . Highest Corruption 5 | . 5 Average Corruption 4 | . 4 Corruption Purged . | . . Effects 5 | . 5 Heat Flow Errors 2 | . 2 Parts Rejected 1 | . 1 Targeting Errors 2 | . 2 Overload Shots . | . . Overflow Damage . | . . Projectiles . | . . Explosions . | . . Melee . | . . Knockbacks . | . . Impact . | . . Kinetic . | . . Secondary . | . . Self-Inflicted Damage . | . . Shots . | . . Rammed 1 | 1 . Targets Rammed 1 | 1 . Kicked . | . . Crushed . | . . Highest Temperature 208 | . 208 Average Temperature 90 | . 90 Received Heat Transfer 123 | . 123 Siege Activations . | . . Robots Corrupted . | . . Combat Hostiles . | . . Parts Fried . | . . Impact Corruptions . | . . Robots Melted . | . . Combat Hostiles . | . . Parts Melted . | . . Heat Transferred . | . . Parts Sabotaged . | . . Parts Stolen . | . . Parts Stripped . | . . Power Chain Reactions . | . . Missiles Intercepted . | . . Alert | -11 -10 ------- Run | Scr Mat Peak Influence 15 | . 15 Average Influence 3 | . 4 Maximum Alert Level . | . . Low Security (%) 100 | . . Level 1 . | . . Level 2 . | . . Level 3 . | . . Level 4 . | . . Level 5 . | . . High Security . | . . Max Security . | . . Squads Dispatched 3 | . 3 Investigation 1 | . 1 Extermination . | . . Reinforcement 1 | . 1 Assault 1 | . 1 Garrison . | . . Intercept . | . . Construction Impeded . | . . Haulers Reinforced . | . . Stealth | -11 -10 --------- Run | Scr Mat Distress Signals 1 | . 1 Communications Jammed . | . . Distress Signals . | . . Times Spotted 17 | . 17 Peak Tracking Total 5 | . 5 Tactical Retreats 2 | . 2 Traps | -11 -10 ------- Run | Scr Mat Traps Triggered . | . . Indirectly . | . . Trap Hack Attempts . | . . Triggered . | . . Disarmed . | . . Reprogrammed . | . . Reused . | . . Traps Extracted . | . . Installed . | . . Triggered . | . . Machines | -11 -10 ---------- Run | Scr Mat Machines Disabled . | . . Max in Single Turn . | . . Machines Sabotaged . | . . Garrisons Compromised . | . . Overloaded Fab Kills . | . . Fab Network Shutdowns . | . . Hacking | -11 -10 --------- Run | Scr Mat Machines Accessed 2 | . 2 Terminals 2 | . 2 Fabricators . | . . Repair Stations . | . . Recycling Units . | . . Scanalyzers . | . . Garrison Access . | . . Total Hacks 5 | . 5 Successful 3 | . 3 Failed 2 | . 2 Catastrophic . | . . Database Lockouts . | . . Manual . | . . Terminals 5 | . 5 Fabricators . | . . Repair Stations . | . . Recycling Units . | . . Scanalyzers . | . . Garrison Access . | . . Terminal Hacks 3 | . 3 Prototype ID Bank 1 | . 1 Zone Layout 2 | . 2 Fabricator Hacks . | . . Repair Station Hacks . | . . Recycling Unit Hacks . | . . Scanalyzer . | . . Garrison Access Hacks . | . . Unauthorized Hacks . | . . Terminals . | . . Fabricators . | . . Repair Stations . | . . Recycling Units . | . . Scanalyzers . | . . Garrison Access . | . . Data Cores Recovered . | . . Used . | . . Hacking Detections 1 | . 1 Full Trace Events . | . . Feedback Events . | . . Feedback Blocked . | . . Robot Schematics Acquired . | . . Robots Built . | . . Matter . | . . Time . | . . Total Robot Build Rating . | . . Part Schematics Acquired . | . . Parts Built . | . . Matter . | . . Time . | . . Total Part Build Rating . | . . Parts Repaired . | . . Time . | . . Parts Recycled . | . . Recycled Matter . | . . Retrieved Matter . | . . Retrieved Components . | . . Parts Scanalyzed . | . . Part Schematics Acquired . | . . Parts Damaged . | . . Bothacking | -11 -10 ------------ Run | Scr Mat Used RIF Installer . | . . Robots Hacked . | . . Non-combat . | . . Combat . | . . Robot Hacks Applied . | . . Relay Couplers Released . | . . Robots Rewired . | . . Allies Hacked . | . . Hacks Repelled . | . . Allies | -11 -10 -------- Run | Scr Mat Total Allies . | . . Largest Group . | . . Highest-Rated Group . | . . Highest-Rated Ally . | . . Total Orders . | . . Ally Attacks . | . . Total Damage . | . . Kills . | . . Allies Corrupted . | . . Allies Melted . | . . Intel | -11 -10 ------- Run | Scr Mat Robot Analysis Total . | . . Derelict Logs Recovered . | . . Drone Launches . | . . Drone Recoveries . | . . Exploration | -11 -10 ------------- Run | Scr Mat Turns Passed 378 | 67 311 Spaces Moved 170 | 37 133 Core 11 | 5 6 Treads 159 | 32 127 Legs . | . . Wheels . | . . Hover . | . . Flight . | . . Fastest Speed 50 | 50 100 Average Speed 154 | 145 157 Slowest Speed 160 | 160 160 Overloaded Moves . | . . Propulsion Burnouts . | . . Robots Hopped . | . . Cave-ins Triggered . | . . Exploration Rate (%) 26 | 4 49 Regions Visited 1 Branch Regions . Pre-discovered Areas . | . . Known Exits Taken . | . . Unknown Exits Taken 1 | 1 . Scrap Searched . | . . Spaces Dug . | . . Terrain Destroyed . | . . Melee . | . . Projectile . | . . AOE . | . . Actions | -11 -10 --------- Run | Scr Mat Total 227 | 50 177 Wait 1 | . 1 Move 168 | 36 132 Hop . | . . Pick Up 14 | 8 6 Fast Attach . | . . Attach 9 | 5 4 Detach . | . . Swap . | . . Drop 1 | . 1 Fire 33 | . 33 Melee . | . . Ram . | . . Kick . | . . Crush 1 | 1 . Escape Stasis . | . . Rewire . | . . Trap . | . . Miscellaneous . | . . Route ------- -11/Scrapyard -10/Materials History --------- Turn | Location | Event 31 | -11/Scrapyard | Discovered new exit (range 14) 68 | -11/Scrapyard | Entered Materials 185 | -10/Materials | Discovered new exit (range 16) 305 | -10/Materials | Build established: Mutant 322 | -10/Materials | Discovered new exit (range 16) 346 | -10/Materials | Core integrity fell below 50% 362 | -10/Materials | Core integrity fell below 20% 379 | -10/Materials | Destroyed by Lesser Abomination with Small Laser Last Messages --------------- Lesser Abomination sheds Disintegrating Anomaly. Lesser Abomination absorbs Com. Wheel. System corrupted: Assault Rifle targeting data glitched. Lesser Abomination absorbs Core Shielding. G-34 Mercenary IFF system glitched. Critical hit. Ion Engine destroyed. Lesser Abomination feeds off Hungry Anomaly, taking Terrain Scan Processor, Heat Sink, Aluminum Leg. Violent ripples tear at the fabric of space around G-34 Mercenary. Assault Rifle destroyed. System corrupted: Lgt. Assault Rifle targeting data glitched. Lgt. Assault Rifle destroyed. Lgt. Treads destroyed. Lgt. Assault Rifle destroyed. System corrupted: Heat flow error (+242). Unstable Anomaly suddenly flashes brightly. Lgt. Treads destroyed. Unstable Anomaly suddenly flashes brightly. Machine disabled. Map ----- +----------------------------------------------------+ | """"""""" """"""""" #????????????????? | | " """ """ ??????????????????? | | " ??????????????????? | | """" + ??????????????????? | | """"""" " " """"" ??????????????????? | | "" """ " """"""""" ??????????????????? | | " """ """ ??????????????????? | | """"""""" ????????????????????????? | | """"" " ????????????????????????? | | "# " " """"????????????????????????? | | "" " " """"""?????????????????????????? | | """ """"" """ ??????????????????????????? | | """ " ??????????????????????????? | | """ """"" ?????????? ???????????????? | | "" ""##""""""""""""???????? #???????????????? | | ## ## ???????? #???????????????? | | # # #?#;;"""""" ##?????? #???????????????? | | """ #####; " #?????? #???????????????? | | " # # ; " #?????; #???????????????? | | "" # #; " #?????; #?###???????????? | | " #; " #???? ; # ???????????? | | ##### ; ###??# ; % ; T ?????????? | | # ##; ;;#;###;;; ; ?????????? | | ;;;;;;;;;; ;; ; ????????? | | % ; ????????? | | % A<@ A ; "?????????? | | % % % A ; "?????????? | | = "" ;;;;;;;;;;; ";% ; "?????????? | | %# ; [[ ;" " "; # ?????????? | | ! ;[[A ; """"""; #??####?????????? | | " """ ;[[[ ####;;;;; ????????????? | | # """"" ; #??; ????????????? | | """"" ; #??; ;;;; n #???????????? | | |% """"" # #??; %; ; #???????????? | | """ ########? ; ; ; ??#???????????? | | #????????#; ; ; ???????????????? | | #?????????; ; ;; "???????????????? | | # # """"""###???????? ; ; ????????????????? | | # " """" " #??????????? ; "? ??????????????????? | | ##" =%! #????????????????????????????????????? | | ?## " " ???????????????????????????????????? | | ??? "%""""""??????????????????????????????????? | | ??? " ??????????????????????????????????? | | ??? " """ "???????????????????????????????????? | | ???"" " ????????????????????????????????????? | | ???"T " ????????????????????????????????????? | | ????? # ??????????????????????????????????????? | | ?????? "?????????????????????????????????????????? | | ?????????????????????????????????????????????????? | | ?????????????????????????????????????????????????? | +----------------------------------------------------+ Best States ------------- Heat Dissipation 35 Energy Generation 10 Energy Capacity 250 Matter Stores 300 Matter Capacity 300 Sight Range 16 Terrain Scan Density 10 Evasion (%) 40 Recoil Reduction 2 Item Schematics ----------------- None Robot Schematics ------------------ None Fabricated ------------ Nothing Alien Tech Used ----------------- None Achievements -------------- None Challenges ------------ None Game ------ Seed WarpArchitectChainsword Manual? 0 Play Time 00:07:17 Cumulative 111.5 hours Start 2019.10.31 @ 21:25:05 End 2019.10.31 @ 21:30:56 Sessions 1 Manual Loads 0 Difficulty Rogue Special Mode Halloween2019/Abominations Game No. 116 Rogue 116 Adventurer 0 Explorer 0 Win Type - Total 1 Types 1/0/0/0/0/0/0 Lore% 61 Gallery% 60 Achievement% 46 Wizard Run 0 Options --------- ASCII 0 Keyboard 0 Movement Mouse Keybinds 0 Fullscreen 1 Font 12/Terminus Map View 83x54 Tactical HUD 0 Map Filters NONE Filters NONE Steam 1 RUN: b9e6cd35-f07a-40ad-bc8d-53a9f5cc1512